fUSD/lending_fUSD_20240119
["ID","MTS","AMOUNT","RATE_DAILY","PERIOD"]
[312179174,1705680649225,-500.0,0.00021917,2]
[312179175,1705680649234,-500.0,0.00021917,2]
[312179176,1705680649244,-734.78,0.00021917,2]
[312179177,1705680649253,-500.0,0.00021917,2]
[312179178,1705680649262,-500.0,0.00021917,2]
[312179179,1705680649271,-500.0,0.00021917,2]
[312179180,1705680649280,-738.17,0.00021917,2]
[312179181,1705680649289,-500.0,0.00021917,2]
[312179182,1705680649298,-500.0,0.00021917,2]
[312179183,1705680649307,-500.0,0.00021917,2]
[312179184,1705680649316,-500.0,0.00021917,2]
[312179185,1705680649325,-500.0,0.00021917,2]
[312179186,1705680649334,-500.0,0.00021917,2]
[312179187,1705680649343,-500.0,0.00021917,2]
[312179188,1705680649352,-500.0,0.00021917,2]
[312179189,1705680649361,-500.0,0.00021917,2]
[312179190,1705680649370,-500.0,0.00021917,2]
[312179191,1705680649379,-500.0,0.00021917,2]
[312179192,1705680649388,-500.0,0.00021917,2]
[312179193,1705680649397,-500.0,0.00021917,2]
[312179194,1705680649407,-500.0,0.00021917,2]
[312179195,1705680649416,-500.0,0.00021917,2]
[312179196,1705680649425,-500.0,0.00021917,2]
[312179197,1705680649434,-500.0,0.00021917,2]
[312179198,1705680649446,-500.0,0.00021917,2]
[312179199,1705680649457,-500.0,0.00021917,2]
[312179200,1705680649466,-500.0,0.00021917,2]
[312179201,1705680649475,-808.82,0.00021917,2]
[312179202,1705680649484,-612.49526658,0.00021917,2]
[312179203,1705680649494,-500.0,0.00021917,2]
[312179204,1705680649503,-150.0,0.00021917,2]
[312179205,1705680649756,-500.0,0.00021917,2]
[312179206,1705680649767,-543.5,0.00021917,2]
[312179207,1705680649777,-500.0,0.00021917,2]
[312179208,1705680649788,-500.0,0.00021917,2]
[312179209,1705680649798,-517.87,0.00021917,2]
[312179210,1705680649807,-653.79,0.00021917,2]
[312179211,1705680649817,-500.0,0.00021917,2]
[312179212,1705680649827,-615.46,0.00021917,2]
[312179213,1705680649836,-500.0,0.00021917,2]
[312179214,1705680649846,-500.0,0.00021917,2]
[312179215,1705680649857,-500.0,0.00021917,2]
[312179216,1705680649867,-500.0,0.00021917,2]
[312179217,1705680649878,-500.0,0.00021917,2]
[312179218,1705680649889,-500.0,0.00021917,2]
[312179219,1705680649899,-500.0,0.00021917,2]
[312179220,1705680649910,-500.0,0.00021917,2]
[312179221,1705680649920,-500.0,0.00021917,2]
[312179222,1705680649930,-500.0,0.00021917,2]
[312179223,1705680649941,-500.0,0.00021917,2]
[312179224,1705680649961,-611.17,0.00021917,2]
[312179225,1705680649971,-500.0,0.00021917,2]
[312179226,1705680649983,-635.54,0.00021917,2]
[312179227,1705680649994,-500.0,0.00021917,2]
[312179228,1705680650004,-500.0,0.00021917,2]
[312179229,1705680650014,-500.0,0.00021917,2]
[312179230,1705680650025,-500.0,0.00021917,2]
[312179231,1705680650035,-522.43,0.00021917,2]
[312179232,1705680650046,-500.0,0.00021917,2]
[312179233,1705680650056,-500.0,0.00021917,2]
[312179234,1705680650068,-500.0,0.00021917,2]
[312179235,1705680650079,-955.77,0.00021917,2]
[312179236,1705680650090,-500.0,0.00021917,2]
[312179237,1705680650101,-500.0,0.00021917,2]
[312179238,1705680650112,-500.0,0.00021917,2]
[312179239,1705680650134,-500.0,0.00021917,2]
[312179240,1705680650148,-500.0,0.00021917,2]
[312179241,1705680650158,-452.42679978,0.00021917,2]
[312179242,1705680650169,-1738.36,0.00021917,2]
[312179243,1705680650179,-500.0,0.00021917,2]
[312179244,1705680650190,-500.0,0.00021917,2]
[312179245,1705680650210,-500.0,0.00021917,2]
[312179246,1705680650222,-500.0,0.00021917,2]
[312179247,1705680650233,-1717.0,0.00021917,2]
[312179248,1705680650244,-500.0,0.00021917,2]
[312179249,1705680650255,-500.0,0.00021917,2]
[312179250,1705680650265,-500.0,0.00021917,2]
[312179251,1705680650275,-500.0,0.00021917,2]
[312179252,1705680650289,-500.0,0.00021917,2]
[312179253,1705680650307,-500.0,0.00021917,2]
[312179254,1705680650317,-271.25756861,0.00021917,2]
[312179255,1705680650327,-500.0,0.00021917,2]
[312179256,1705680650337,-500.0,0.00021917,2]
[312179257,1705680650348,-500.0,0.00021917,2]
[312179258,1705680650358,-500.0,0.00021917,2]
[312179259,1705680650368,-999.76,0.00021917,2]
[312179260,1705680650378,-2763.89,0.00021917,2]
[312179261,1705680650388,-500.0,0.00021917,2]
[312179262,1705680650398,-500.0,0.00021917,2]
[312179263,1705680650408,-1137.82,0.00021917,2]
[312179264,1705680650419,-1129.65,0.00021917,2]
[312179265,1705680650429,-500.0,0.00021917,2]
[312179266,1705680650439,-668.2,0.00021917,2]
[312179267,1705680650457,-500.0,0.00021917,2]
[312179268,1705680650467,-500.0,0.00021917,2]
[312179269,1705680650477,-1337.05,0.00021917,2]
[312179270,1705680650488,-500.0,0.00021917,2]
[312179271,1705680650498,-500.0,0.00021917,2]
[312179272,1705680650508,-1786.09,0.00021917,2]
[312179273,1705680650518,-500.0,0.00021917,2]
[312179274,1705680650528,-804.75,0.00021917,2]
[312179275,1705680650538,-500.0,0.00021917,2]
[312179276,1705680650548,-500.0,0.00021917,2]
[312179277,1705680650559,-500.0,0.00021917,2]
[312179278,1705680650569,-639.41051229,0.00021917,2]
[312179279,1705680650579,-500.0,0.00021917,2]
[312179280,1705680650590,-500.0,0.00021917,2]
[312179281,1705680650600,-500.0,0.00021917,2]
[312179282,1705680650610,-500.0,0.00021917,2]
[312179283,1705680650620,-1057.69,0.00021917,5]
[312179284,1705680650630,-579.45,0.00021917,2]
[312179285,1705680650639,-1039.7,0.00021917,2]
[312179286,1705680650654,-722.61,0.00021917,2]
[312179287,1705680650664,-500.0,0.00021917,2]
[312179288,1705680650674,-500.0,0.00021917,2]
[312179289,1705680650684,-1550.51,0.00021917,2]
[312179290,1705680650699,-500.0,0.00021917,2]
[312179291,1705680650709,-500.0,0.00021917,2]
[312179292,1705680650719,-500.0,0.00021917,2]
[312179293,1705680650729,-506.1,0.00021917,2]
[312179294,1705680650739,-500.0,0.00021917,2]
[312179295,1705680650749,-500.0,0.00021917,2]
[312179296,1705680650759,-500.0,0.00021917,2]
[312179297,1705680650772,-698.02,0.00021917,2]
[312179298,1705680650783,-1479.96,0.00021917,2]
[312179299,1705680650793,-1636.2,0.00021917,2]
[312179300,1705680650803,-500.0,0.00021917,2]
[312179301,1705680650814,-834.84,0.00021917,2]
[312179302,1705680650824,-511.62,0.00021917,2]
[312179303,1705680650834,-500.0,0.00021917,2]
[312179304,1705680650845,-500.0,0.00021917,2]
[312179305,1705680650854,-1454.85,0.00021917,2]
[312179306,1705680650865,-2734.66,0.00021917,2]
[312179307,1705680650875,-358.19072084,0.00021917,2]
[312179308,1705680650885,-12624.72,0.00021917,2]
[312179309,1705680650895,-3054.1,0.00021917,2]
[312179310,1705680650905,-500.0,0.00021917,2]
[312179311,1705680650916,-500.0,0.00021917,2]
[312179312,1705680650925,-500.0,0.00021917,2]
[312179313,1705680650935,-500.0,0.00021917,2]
[312179314,1705680650950,-1078.1,0.00021917,2]
[312179315,1705680650964,-432.76382489,0.00021917,2]
[312179316,1705680650974,-4523.78,0.00021917,2]
[312179317,1705680650985,-500.0,0.00021917,2]
[312179318,1705680650995,-500.0,0.00021917,2]
[312179319,1705680651005,-1452.28,0.00021917,2]
[312179320,1705680651015,-500.0,0.00021917,2]
[312179321,1705680651025,-438.09667885,0.00021917,2]
[312179322,1705680651035,-500.0,0.00021917,2]
[312179323,1705680651045,-500.0,0.00021917,2]
[312179324,1705680651055,-888.17,0.00021917,2]
[312179325,1705680651066,-551.16182999,0.00021917,2]
[312179326,1705680651075,-1307.79,0.00021917,2]
[312179327,1705680651085,-1087.71,0.00021917,2]
[312179328,1705680651096,-500.0,0.00021917,2]
[312179329,1705680651105,-500.0,0.00021917,2]
[312179330,1705680651115,-500.0,0.00021917,2]
[312179331,1705680651125,-744.07,0.00021917,2]
[312179332,1705680651134,-626.06,0.00021917,2]
[312179333,1705680651144,-7850.54,0.00021917,2]
[312179334,1705680651154,-710.63,0.00021917,2]
[312179335,1705680651168,-5683.67,0.00021917,2]
[312179336,1705680651179,-500.0,0.00021917,2]
[312179337,1705680651189,-559.99,0.00021917,2]
[312179338,1705680651202,-500.0,0.00021917,2]
[312179339,1705680651213,-500.0,0.00021917,2]
[312179340,1705680651223,-507.34,0.00021917,2]
[312179341,1705680651233,-500.0,0.00021917,2]
[312179342,1705680651243,-1102.11,0.00021917,2]
[312179343,1705680651254,-500.0,0.00021917,2]
[312179344,1705680651264,-500.0,0.00021917,2]
[312179345,1705680651273,-771.92,0.00021917,2]
[312179346,1705680651284,-801.64,0.00021917,2]
[312179347,1705680651294,-730.4,0.00021917,2]
[312179348,1705680651305,-500.0,0.00021917,2]
[312179349,1705680651316,-536.47,0.00021917,2]
[312179350,1705680651326,-500.0,0.00021917,2]
[312179351,1705680651335,-500.0,0.00021917,2]
[312179352,1705680651345,-500.0,0.00021917,2]
[312179353,1705680651355,-500.0,0.00021917,2]
[312179354,1705680651364,-1970.1,0.00021917,2]
[312179355,1705680651373,-3270.99,0.00021917,2]
[312179356,1705680651383,-500.0,0.00021917,2]
[312179357,1705680651394,-500.0,0.00021917,2]
[312179358,1705680651404,-500.0,0.00021917,2]
[312179359,1705680651413,-500.0,0.00021917,2]
[312179360,1705680651423,-878.73,0.00021917,2]
[312179361,1705680651433,-814.17,0.00021917,2]
[312179362,1705680651444,-2141.31,0.00021917,2]
[312179363,1705680651454,-500.0,0.00021917,2]
[312179364,1705680651465,-500.0,0.00021917,2]
[312179365,1705680651474,-500.0,0.00021917,2]
[312179366,1705680651484,-7208.73,0.00021917,2]
[312179367,1705680651495,-500.0,0.00021917,2]
[312179368,1705680651509,-500.0,0.00021917,2]
[312179369,1705680651519,-500.0,0.00021917,2]
[312179370,1705680651529,-560.04,0.00021917,2]
[312179371,1705680651539,-500.0,0.00021917,2]
[312179372,1705680651550,-4629.78,0.00021917,2]
[312179373,1705680651560,-503.91,0.00021917,2]
[312179374,1705680651571,-500.0,0.00021917,2]
[312179375,1705680651580,-500.0,0.00021917,2]
[312179376,1705680651591,-1394.69,0.00021917,2]
[312179377,1705680651600,-839.12,0.00021917,2]
[312179378,1705680651610,-500.0,0.00021917,2]
[312179379,1705680651621,-512.02,0.00021917,2]
[312179380,1705680651631,-500.0,0.00021917,2]
[312179381,1705680651641,-500.0,0.00021917,2]
[312179382,1705680651651,-500.0,0.00021917,2]
[312179383,1705680651661,-500.0,0.00021917,2]
[312179384,1705680651672,-859.86,0.00021917,2]
[312179385,1705680651682,-500.0,0.00021917,2]
[312179386,1705680651693,-1499.99,0.00021917,2]
[312179387,1705680651703,-730.67,0.00021917,2]
[312179388,1705680651714,-500.0,0.00021917,2]
[312179389,1705680651723,-716.94,0.00021917,2]
[312179390,1705680651733,-500.0,0.00021917,2]
[312179391,1705680651743,-500.0,0.00021917,2]
[312179392,1705680651753,-500.0,0.00021917,2]
[312179393,1705680651763,-500.0,0.00021917,2]
[312179394,1705680651773,-500.0,0.00021917,2]
[312179395,1705680651783,-935.7,0.00021917,2]
[312179396,1705680651794,-1012.42,0.00021917,2]
[312179397,1705680651804,-500.0,0.00021917,2]
[312179398,1705680651815,-10486.55,0.00021917,2]
[312179399,1705680651825,-1653.44,0.00021917,2]
[312179400,1705680651835,-640.51,0.00021917,2]
[312179401,1705680651846,-500.0,0.00021917,2]
[312179402,1705680651855,-1093.76,0.00021917,2]
[312179403,1705680651865,-500.0,0.00021917,2]
[312179404,1705680651877,-500.0,0.00021917,2]
[312179405,1705680651887,-500.0,0.00021917,2]
[312179406,1705680651896,-500.0,0.00021917,2]
[312179407,1705680651906,-500.0,0.00021917,2]
[312179408,1705680651916,-500.0,0.00021917,2]
[312179409,1705680651926,-682.86,0.00021917,2]
[312179410,1705680651936,-1412.57,0.00021917,2]
[312179411,1705680651947,-1669.52,0.00021917,2]
[312179412,1705680651958,-663.44,0.00021917,2]
[312179413,1705680651968,-659.37,0.00021917,2]
[312179414,1705680651978,-512.59,0.00021917,2]
[312179415,1705680651988,-500.0,0.00021917,2]
[312179416,1705680651998,-865.24,0.00021917,2]
[312179417,1705680652008,-500.0,0.00021917,2]
[312179418,1705680652018,-1110.44,0.00021917,2]
[312179419,1705680652028,-747.33,0.00021917,2]
[312179420,1705680652038,-540.79,0.00021917,2]
[312179421,1705680652048,-549.72732058,0.00021917,2]
[312179422,1705680652058,-815.55,0.00021917,2]
[312179423,1705680652068,-537.7,0.00021917,2]
[312179424,1705680652078,-500.0,0.00021917,2]
[312179425,1705680652088,-500.0,0.00021917,2]
[312179426,1705680652098,-1535.72,0.00021917,2]
[312179427,1705680652107,-865.64,0.00021917,2]
[312179428,1705680652117,-500.0,0.00021917,2]
[312179429,1705680652128,-500.0,0.00021917,2]
[312179430,1705680652138,-3416.2,0.00021917,2]
[312179431,1705680652148,-658.53,0.00021917,2]
[312179432,1705680652158,-142.42185275,0.00021917,2]
[312179433,1705680671425,419.78,0.00018393,2]
[312179434,1705681025544,150.0,0.000183,2]
[312179435,1705681093649,150.0,0.00018296,2]
[312179436,1705681099706,235.6930786,0.00018442,2]
[312179437,1705681274922,200.0,0.00018492,2]
[312179438,1705681278791,705.41846479,0.000185,2]
[312179439,1705681300438,-155.0,0.00018506,2]
[312179440,1705681301577,150.0,0.00018324,2]
[312179441,1705681301599,150.0,0.00018324,2]
[312179442,1705681301620,189.68,0.00018324,2]
[312179443,1705681303123,11.88698146,0.00018505,2]
[312179444,1705681303143,150.0,0.00018505,2]
[312179445,1705681304767,-484.27704847,0.00018505,2]
[312179446,1705681314027,1061.16567652,0.00018504,2]
[312179447,1705681314538,156.48,0.0001838,2]
[312179448,1705681317319,228.3602233,0.00018504,2]
[312179449,1705681322041,1178.56113027,0.00018504,2]
[312179450,1705681330405,215.1525259,0.00018504,2]
[312179451,1705681336744,420.01569595,0.00018504,2]
[312179452,1705681341051,253.02827447,0.00018504,2]
[312179453,1705681342109,1810.60404272,0.00018504,2]
[312179454,1705681344084,289.03050661,0.00018504,2]
[312179455,1705681350686,4350.83358686,0.00018504,2]
[312179456,1705681351340,1071.00732196,0.00018504,2]
[312179457,1705681352760,420.01569595,0.00017918,2]
[312179458,1705681367487,245.32,0.0001838,2]
[312179459,1705681372752,418.40598634,0.00017918,2]
[312179460,1705681380148,4583.66037889,0.00018504,2]
[312179461,1705681380173,12182.98249187,0.00018504,2]
[312179462,1705681388559,1061.16567652,0.00018504,2]
[312179463,1705681389070,573.28,0.00018291,2]
[312179464,1705681398564,1178.56113027,0.00018504,2]
[312179465,1705681415599,1751.66325401,0.00017732,2]
[312179466,1705681439756,6518.5319745,0.00018478,2]
[312179467,1705681452500,190.97,0.00018054,2]
[312179468,1705681455084,490.03,0.00016174,2]
[312179469,1705681455396,490.03,0.00018438,2]
[312179470,1705681462461,393.68225135,0.00018478,2]
[312179471,1705681492585,500.0,0.00017937,2]
[312179472,1705681496888,150.0,0.00018007,2]
[312179473,1705681500861,1364.04535373,0.00018504,2]
[312179474,1705681506645,867.3574407,0.00018504,2]
[312179475,1705681525579,1178.56113027,0.00018504,2]
[312179476,1705681527236,387.06249631,0.00018504,2]
[312179477,1705681527464,3145.34192243,0.00018504,2]
[312179478,1705681527562,1061.16567652,0.00018504,2]
[312179479,1705681529062,2020.91899036,0.00018504,2]
[312179480,1705681530179,2605.00019777,0.00018504,2]
[312179481,1705681530791,419.65429874,0.00018504,2]
[312179482,1705681540206,4350.83358686,0.00018504,2]
[312179483,1705681563490,33382.50685205,0.00018504,2]
[312179484,1705681573639,155.0,0.00018007,2]
[312179485,1705681587149,867.3574407,0.00018504,2]
[312179486,1705681588848,159.62236111,0.00018504,2]
[312179487,1705681595248,1136.8526006,0.00018504,2]
[312179489,1705681619565,1050.59392633,0.00018504,2]
[312179490,1705681621650,2605.00019777,0.00018504,2]
[312179491,1705681622022,150.0,0.00018504,2]
[312179492,1705681622103,300.0,0.00018504,2]
[312179493,1705681630985,4273.6526089,0.00018504,2]
[312179496,1705681640865,164.87,0.00017911,2]
[312179497,1705681643949,33382.50685205,0.00018504,2]
[312179498,1705681673651,867.3574407,0.00018504,2]
[312179499,1705681681942,525.31564843,0.00018504,2]
[312179500,1705681693820,156.71283821,0.00018413,2]
[312179501,1705681699773,2611.04,0.00017904,2]
[312179502,1705681700270,164.94,0.00017904,2]
[312179503,1705681714020,717.650743,0.00018412,2]
[312179504,1705681715193,2605.00019777,0.00018504,2]
[312179505,1705681735386,704.57,0.00017932,2]
[312179507,1705681751775,121324.47,0.00017916,2]
[312179508,1705681754283,16766.64287076,0.00018504,2]
[312179509,1705681755941,153.48,0.00018091,2]
[312179510,1705681756471,153.48,0.00018402,2]
[312179518,1705681757399,200.0,0.00017972,2]
[312179523,1705681772292,3227.72356744,0.00018504,2]
[312179526,1705681775953,903.85572825,0.00018319,2]
[312179527,1705681783470,23900.0,0.00017934,2]
[312179528,1705681792465,200.0,0.00017934,2]
[312179529,1705681796692,2605.00019777,0.00018504,2]
[312179530,1705681801732,300.0,0.00018504,2]
[312179531,1705681801865,150.0,0.00018504,2]
[312179532,1705681817243,2605.00019777,0.00018504,2]
[312179533,1705681828166,541.37,0.00018091,2]
[312179567,1705681833875,-150.0,0.00018505,2]
[312179568,1705681833885,-671.68721936,0.00018505,2]
[312179569,1705681833955,-1811.30304704,0.00018505,2]
[312179570,1705681833966,-6231.15200001,0.00018505,2]
[312179571,1705681833982,-1235.66913836,0.00018505,2]
[312179572,1705681834004,-173368.60484523,0.00018505,2]
[312179573,1705681834013,-156.48,0.0001855,2]
[312179574,1705681834023,-325.36763315,0.00018566,2]
[312179575,1705681834043,-153.39111625,0.00018568,2]
[312179576,1705681834052,-189.97,0.00018596,2]
[312179577,1705681834062,-215.35384188,0.00018646,2]
[312179578,1705681834072,-448.08,0.00018646,2]
[312179579,1705681834081,-419.11443701,0.00018654,2]
[312179580,1705681834090,-423.42499971,0.00018654,2]
[312179581,1705681834100,-1349.84853397,0.00018663,2]
[312179582,1705681834109,-386.13592816,0.00018663,2]
[312179583,1705681834118,-1485.51430148,0.00018663,2]
[312179584,1705681834128,-480.52497421,0.00018663,2]
[312179585,1705681834137,-2017.12967943,0.00018663,2]
[312179586,1705681834151,-460.60100332,0.00018663,2]
[312179587,1705681834160,-295.46027835,0.00018663,2]
[312179588,1705681834169,-1001.9188633,0.00018663,2]
[312179589,1705681834180,-204.38101367,0.00018663,2]
[312179590,1705681834189,-4285.1857248,0.00018663,2]
[312179591,1705681834198,-1873.77811087,0.00018663,5]
[312179592,1705681834210,-760.88965888,0.00018663,2]
[312179593,1705681834219,-567.7906148,0.00018663,2]
[312179595,1705681834229,-1533.77,0.00018663,2]
[312179597,1705681834239,-2740.97308765,0.00018664,2]
[312179599,1705681834248,-1000.0,0.00018664,2]
[312179601,1705681834257,-501.56698146,0.00018665,2]
[312179604,1705681834270,-332.77661456,0.00018665,2]
[312179606,1705681834279,-313.5325998,0.00018665,2]
[312179608,1705681834289,-252.47622951,0.00018665,2]
[312179610,1705681834298,-288.29288908,0.00018665,2]
[312179612,1705681834308,-1069.61574888,0.00018665,2]
[312179614,1705681834317,-1256.24889353,0.00018665,2]
[312179616,1705681834326,-10556.47736135,0.00018665,2]
[312179618,1705681834335,-314.64142512,0.00018665,2]
[312179620,1705681834345,-162.70952851,0.00018665,2]
[312179622,1705681834354,-160.99807622,0.00018665,2]
[312179624,1705681834364,-436724.10008794,0.00018665,2]
[312179626,1705681834374,-155.69206296,0.00018666,2]
[312179628,1705681834384,-1963.73723779,0.00018666,2]
[312179630,1705681834397,-153.48,0.00018712,2]
[312179632,1705681834406,-156.48,0.00018719,2]
[312179634,1705681834415,-9596.39395778,0.00018844,2]
[312179636,1705681834424,-156.48,0.00018889,2]
[312179638,1705681834434,-200.0,0.000189,6]
[312179640,1705681834443,-704.57,0.00018911,2]
[312179642,1705681834452,-189.8,0.00018914,2]
[312179644,1705681834461,-1463.04,0.00018923,2]
[312179646,1705681834471,-189.8,0.00018965,2]
[312179648,1705681834480,-189.8,0.00019017,2]
[312179650,1705681834489,-153.48,0.00019022,2]
[312179652,1705681834498,-156.48,0.00019059,2]
[312179654,1705681834507,-189.8,0.00019069,2]
[312179656,1705681834516,-189.8,0.00019121,2]
[312179658,1705681834525,-189.8,0.00019173,2]
[312179660,1705681834535,-2653.64786023,0.000192,2]
[312179662,1705681834544,-189.8,0.00019225,2]
[312179664,1705681834553,-156.48,0.00019228,2]
[312179666,1705681834562,-189.8,0.00019277,2]
[312179667,1705681834571,-500.0,0.0001929,2]
[312179668,1705681834580,-300.0,0.00019312,2]
[312179669,1705681834590,-499.99,0.00019312,2]
[312179670,1705681834599,-278.57815345,0.00019315,2]
[312179671,1705681834609,-325.36763308,0.00019328,2]
[312179672,1705681834619,-189.8,0.00019328,2]
[312179673,1705681834629,-153.48,0.00019332,2]
[312179674,1705681834638,-159.56,0.0001937,2]
[312179675,1705681834652,-158.04,0.0001937,2]
[312179676,1705681834661,-189.8,0.0001938,2]
[312179677,1705681834670,-156.48,0.00019398,2]
[312179678,1705681834679,-246.31239322,0.00019412,2]
[312179679,1705681834689,-155.1313233,0.00019412,2]
[312179680,1705681834698,-156.6051087,0.00019412,2]
[312179681,1705681834707,-302.89880783,0.00019412,2]
[312179682,1705681834717,-232.94057765,0.00019412,2]
[312179683,1705681834727,-155.0,0.00019412,2]
[312179684,1705681834736,-285.64727706,0.00019412,2]
[312179685,1705681834746,-3447.50971928,0.00019412,2]
[312179686,1705681834755,-155.22013602,0.00019412,2]
[312179687,1705681834764,-369.19666549,0.00019412,2]
[312179688,1705681834774,-231.67297759,0.00019412,2]
[312179689,1705681834783,-155.0,0.00019412,2]
[312179690,1705681834792,-2116.34264777,0.00019412,2]
[312179691,1705681834801,-1044.62291264,0.00019412,2]
[312179692,1705681834811,-376.78302695,0.00019412,2]
[312179693,1705681834820,-1223.73555236,0.00019412,2]
[312179694,1705681834830,-155.53796426,0.00019412,2]
[312179695,1705681834840,-193.8500035,0.00019412,2]
[312179696,1705681834850,-559.36868981,0.00019415,2]
[312179697,1705681834859,-206.0,0.00019428,2]
[312179698,1705681834868,-153.3911162,0.00019429,2]
[312179699,1705681834878,-189.8,0.00019432,2]
[312179700,1705681834887,-189.8,0.00019484,2]
[312179701,1705681834901,-189.8,0.00019536,2]
[312179702,1705681834911,-155.0,0.00019543,2]
[312179703,1705681834920,-156.48,0.00019568,2]
[312179704,1705681834930,-189.8,0.00019588,2]
[312179705,1705681834939,-192.90231929,0.00019633,2]
[312179706,1705681834949,-189.8,0.0001964,2]
[312179707,1705681834958,-153.48,0.00019642,2]
[312179708,1705681834968,-189.8,0.00019691,2]
[312179709,1705681834977,-158.46,0.00019735,2]
[312179710,1705681834986,-156.48,0.00019737,2]
[312179711,1705681834995,-189.8,0.00019743,2]
[312179712,1705681835004,-189.8,0.00019795,2]
[312179713,1705681835013,-500.0,0.00019838,2]
[312179714,1705681835023,-189.8,0.00019847,2]
[312179715,1705681835032,-704.57,0.00019889,2]
[312179716,1705681835042,-158.46,0.00019893,2]
[312179717,1705681835051,-189.8,0.00019899,2]
[312179718,1705681835060,-195.81269172,0.000199,2]
[312179719,1705681835069,-156.48,0.00019907,2]
[312179720,1705681835079,-153.48,0.00019952,2]
[312179721,1705681835088,-2475.29256209,0.0002,2]
[312179722,1705681835098,-247.18324374,0.0002,2]
[312179723,1705681835107,-157.39865583,0.0002,2]
[312179724,1705681835118,-280.58151046,0.0002,2]
[312179725,1705681835128,-4487.93862485,0.0002,2]
[312179726,1705681835138,-158.46,0.00020051,2]
[312179727,1705681835151,-156.48,0.00020077,2]
[312179728,1705681835161,-325.36763308,0.0002009,2]
[312179729,1705681835171,-158.04,0.00020099,2]
[312179730,1705681835426,-156.71283821,0.00020163,2]
[312179731,1705681835436,-158.46,0.00020209,2]
[312179732,1705681835447,-156.48,0.00020246,2]
[312179733,1705681835457,-153.48,0.00020262,2]
[312179734,1705681835467,-726.48460476,0.00020267,2]
[312179735,1705681835477,-153.3911162,0.0002029,2]
[312179736,1705681835487,-541.37,0.00020353,2]
[312179737,1705681835497,-188.0,0.00020354,2]
[312179738,1705681835507,-158.46,0.00020367,2]
[312179739,1705681835516,-500.0,0.00020386,2]
[312179740,1705681835526,-156.48,0.00020416,2]
[312179741,1705681835536,-195.81269169,0.00020448,2]
[312179742,1705681835546,-158.46,0.00020525,2]
[312179743,1705681835556,-2000.0,0.00020548,2]
[312179744,1705681835565,-573.28,0.00020577,2]
[312179745,1705681835574,-156.48,0.00020586,2]
[312179746,1705681835584,-180.19587329,0.00020589,2]
[312179747,1705681835593,-310.23,0.00020612,2]
[312179748,1705681835603,-158.46,0.00020683,2]
[312179749,1705681835612,-490.03,0.00020701,2]
[312179750,1705681835622,-726.48460476,0.00020802,2]
[312179751,1705681835631,-158.04,0.00020827,2]
[312179752,1705681835641,-158.46,0.00020841,2]
[312179753,1705681835656,-325.36763308,0.00020852,2]
[312179754,1705681835667,-704.57,0.00020868,2]
[312179755,1705681835678,-500.0,0.00020934,2]
[312179756,1705681835688,-11986.07,0.00020951,2]
[312179757,1705681835699,-1071.82,0.00020951,2]
[312179758,1705681835709,-195.81269169,0.00020996,2]
[312179759,1705681835719,-158.46,0.00020999,2]
[312179760,1705681835729,-153.3911162,0.00021152,2]